fUSD/lending_fUSD_20241006
["ID","MTS","AMOUNT","RATE_DAILY","PERIOD"]
[339966978,1728240632467,-150.0,0.00030205,2]
[339966979,1728240632476,-151.21,0.00030205,2]
[339966980,1728240632486,-300.0,0.00030205,2]
[339966981,1728240632495,-302.0,0.00030205,2]
[339966982,1728240632505,-754.84,0.00030541,2]
[339966983,1728240632514,-423.5,0.00030541,2]
[339966984,1728240632522,-150.0,0.00030678,2]
[339966985,1728240632531,-150.0,0.00030678,2]
[339966986,1728240632541,-534.16,0.00030685,2]
[339966987,1728240632550,-534.16,0.00030685,2]
[339966988,1728240632559,-322.5308873,0.00030685,2]
[339966989,1728240632571,-211.6291127,0.00030685,2]
[339966990,1728240632580,-534.16,0.00030685,2]
[339966991,1728240632593,-534.16,0.00030685,2]
[339966992,1728240632603,-534.16,0.00030685,2]
[339966993,1728240632612,-534.16,0.00030685,2]
[339966994,1728240632621,-167.0,0.00030686,2]
[339966995,1728240632631,-329.99286588,0.00030749,2]
[339966996,1728240632642,-93.50713412,0.00030749,2]
[339966997,1728240632651,-423.5,0.00030749,2]
[339966998,1728240632786,-754.75,0.00030749,2]
[339966999,1728240632795,-423.5,0.00030749,2]
[339967000,1728240632805,-754.75,0.00030749,2]
[339967001,1728240632814,-420.86,0.00030749,2]
[339967002,1728240632824,-745.87,0.00030749,2]
[339967003,1728240632835,-262.063,0.00030924,2]
[339967004,1728240632844,-150.0,0.00031023,2]
[339967005,1728240632854,-301.73,0.00031023,2]
[339967006,1728240632869,-150.0,0.00031023,2]
[339967007,1728240632878,-150.0,0.00031023,2]
[339967008,1728240632887,-150.0,0.00031023,2]
[339967009,1728240632896,-150.0,0.00031023,2]
[339967010,1728240632905,-150.0,0.00031023,2]
[339967011,1728240632914,-150.0,0.00031023,2]
[339967012,1728240632923,-150.0,0.00031023,2]
[339967013,1728240632933,-428.96,0.00031027,2]
[339967014,1728240632942,-428.96,0.00031027,2]
[339967015,1728240632951,-428.96,0.00031027,2]
[339967016,1728240632960,-428.96,0.00031027,2]
[339967017,1728240632969,-6.66982087,0.00031027,2]
[339967018,1728240632981,-422.29017913,0.00031027,2]
[339967019,1728240632990,-247.76947352,0.00031027,2]
[339967020,1728240633001,-181.19052648,0.00031027,2]
[339967021,1728240633011,-428.96,0.00031027,2]
[339967022,1728240633020,-195.69445503,0.00031027,2]
[339967023,1728240633031,-233.26554497,0.00031027,2]
[339967024,1728240633040,-66.42445513,0.00031027,2]
[339967028,1728240637757,-362.53554487,0.00031027,2]
[339967029,1728240637767,-428.96,0.00031027,2]
[339967031,1728240637777,-428.96,0.00031027,2]
[339967033,1728240637786,-428.96,0.00031027,2]
[339967035,1728240637800,-428.96,0.00031027,2]
[339967037,1728240637809,-428.96,0.00031027,2]
[339967039,1728240637819,-428.96,0.00031027,2]
[339967041,1728240637828,-690.08,0.00031027,2]
[339967043,1728240637839,-150.4,0.00031266,2]
[339967045,1728240637848,-2273.8664,0.0003128,2]
[339967046,1728240637857,-12833.4433,0.0003128,2]
[339967048,1728240637867,-850.311,0.0003128,2]
[339967050,1728240637876,-1000.0,0.0003128,2]
[339967052,1728240637886,-151.0,0.0003128,7]
[339967054,1728240637895,-355.7179,0.0003128,2]
[339967056,1728240637904,-627.5545,0.0003128,2]
[339967058,1728240637913,-884.7869,0.0003128,2]
[339967060,1728240637922,-153.6701551,0.0003128,2]
[339967061,1728240637930,-151.0,0.0003128,7]
[339967063,1728240637940,-151.0,0.0003128,7]
[339967065,1728240637949,-1257.57370144,0.0003128,3]
[339967066,1728240637958,-151.0,0.0003128,7]
[339967067,1728240637967,-151.0,0.0003128,7]
[339967068,1728240637977,-1914.46891739,0.0003128,2]
[339967069,1728240637988,-827.94825176,0.0003128,2]
[339967070,1728240637999,-600.0,0.0003128,2]
[339967071,1728240638010,-34240.50956628,0.0003128,2]
[339967072,1728240638028,-2100.65791727,0.0003128,2]
[339967073,1728240638039,-460.04,0.0003128,2]
[339967074,1728240638055,-274.27572277,0.0003128,2]
[339967075,1728240638074,-1201.07485359,0.0003128,2]
[339967085,1728240639774,-4040.214,0.0003128,2]
[339967086,1728240639906,-583.77713544,0.0003128,2]
[339967087,1728240640035,-2037.33,0.0003128,2]
[339967202,1728240645850,-150.0,0.00026368,2]
[339967203,1728240645860,-150.0,0.00029368,2]
[339967204,1728240645872,-84492.3470355,0.0003128,2]
[339967205,1728240645884,-151.0,0.0003128,7]
[339967206,1728240645894,-151.0,0.0003128,7]
[339967207,1728240645905,-293.711098,0.0003128,7]
[339967208,1728240645919,-1062.65824532,0.0003128,2]
[339967209,1728240645930,-151.0,0.0003128,7]
[339967210,1728240645942,-151.0,0.0003128,7]
[339967211,1728240645953,-151.0,0.0003128,7]
[339967212,1728240645963,-151.0,0.0003128,7]
[339967213,1728240645973,-16790.4527,0.0003128,2]
[339967214,1728240645983,-150.0,0.000313,2]
[339967215,1728240645994,-311464.97463981,0.0003138,2]
[339967216,1728240646003,-151.0,0.0003138,7]
[339967217,1728240646013,-151.0,0.0003138,7]
[339967218,1728240646022,-151.0,0.0003138,7]
[339967219,1728240646032,-177.756046,0.0003138,7]
[339967220,1728240646043,-177.756046,0.0003138,7]
[339967221,1728240646053,-151.0,0.0003138,7]
[339967222,1728240646063,-257.46211,0.0003138,7]
[339967223,1728240646074,-151.0,0.0003138,7]
[339967224,1728240646085,-151.0,0.0003138,7]
[339967225,1728240646096,-151.0,0.0003138,7]
[339967226,1728240646107,-1830.585026,0.000314,2]
[339967227,1728240646118,-7500.0,0.000314,2]
[339967228,1728240646129,-476.68278577,0.0003149,2]
[339967229,1728240646139,-150.01,0.00031499,2]
[339967230,1728240646151,-3900.59399353,0.00031499,2]
[339967231,1728240646163,-151.0,0.00031499,7]
[339967232,1728240646174,-151.0,0.00031499,7]
[339967233,1728240646185,-177.756046,0.00031499,7]
[339967235,1728240646196,-177.756046,0.00031499,7]
[339967237,1728240646207,-500.0,0.00031499,2]
[339967238,1728240646218,-214.69234073,0.00031499,2]
[339967239,1728240646229,-151.0,0.00031499,7]
[339967240,1728240646238,-151.0,0.00031499,7]
[339967241,1728240646248,-151.0,0.00031499,7]
[339967242,1728240646258,-151.0,0.00031499,7]
[339967243,1728240646268,-1000.0,0.000315,2]
[339967244,1728240646278,-1000.0,0.000315,2]
[339967245,1728240646288,-1000.0,0.000315,2]
[339967246,1728240646299,-1000.0,0.000315,2]
[339967247,1728240646309,-1000.0,0.000315,2]
[339967248,1728240646320,-1000.0,0.000315,2]
[339967249,1728240646331,-1000.0,0.000315,2]
[339967250,1728240646344,-1000.0,0.000315,2]
[339967251,1728240646357,-1000.0,0.000315,2]
[339967252,1728240646367,-647.80894514,0.000315,2]
[339967253,1728240646376,-225.227548,0.000315,7]
[339967254,1728240646387,-151.0,0.000315,7]
[339967255,1728240646398,-186.934923,0.000315,7]
[339967256,1728240646409,-151.0,0.000315,7]
[339967257,1728240646420,-151.0,0.000315,7]
[339967258,1728240646430,-151.0,0.000315,7]
[339967259,1728240646441,-151.0,0.000315,7]
[339967260,1728240646451,-299.854048,0.000315,7]
[339967261,1728240646461,-177.756046,0.000315,7]
[339967262,1728240646472,-177.756046,0.000315,7]
[339967263,1728240646482,-177.756046,0.000315,7]
[339967264,1728240646492,-177.756046,0.000315,7]
[339967265,1728240646502,-151.0,0.000315,7]
[339967266,1728240646512,-151.0,0.000315,7]
[339967267,1728240646523,-151.0,0.000315,7]
[339967268,1728240646533,-151.0,0.000315,7]
[339967269,1728240646543,-151.0,0.000315,7]
[339967270,1728240646553,-175.20355,0.000315,7]
[339967271,1728240646563,-167.0,0.00031512,2]
[339967272,1728240646574,-151.0,0.000317,7]
[339967273,1728240646584,-150.0,0.00031845,2]
[339967274,1728240646596,-150.0,0.00031845,2]
[339967275,1728240646606,-300.0,0.00031845,2]
[339967276,1728240646617,-150.0,0.00031845,2]
[339967277,1728240646627,-361.47,0.00031845,2]
[339967278,1728240646637,-150.0,0.00031845,2]
[339967279,1728240646647,-150.0,0.00031845,2]
[339967280,1728240646658,-428.96,0.00031845,2]
[339967281,1728240646668,-428.96,0.00031845,2]
[339967282,1728240646678,-428.96,0.00031845,2]
[339967283,1728240646689,-428.96,0.00031845,2]
[339967284,1728240646699,-428.96,0.00031845,2]
[339967285,1728240646709,-971.77,0.00031845,2]
[339967286,1728240646720,-151.0,0.00031845,7]
[339967287,1728240646730,-177.756046,0.00031845,7]
[339967288,1728240646740,-177.756046,0.00031845,7]
[339967289,1728240646750,-217.0,0.000319,2]
[339967290,1728240646760,-429.0,0.000319,16]
[339967291,1728240646771,-194.0,0.000319,16]
[339967292,1728240646785,-151.0,0.000319,7]
[339967293,1728240646800,-151.0,0.000319,7]
[339967294,1728240646810,-150.21922956,0.00031908,5]
[339967295,1728240646821,-50000.0,0.00032,22]
[339967296,1728240646831,-50000.0,0.00032,32]
[339967297,1728240646844,-151.0,0.00032,7]
[339967298,1728240646855,-151.0,0.00032,7]
[339967299,1728240646865,-177.756046,0.00032,7]
[339967300,1728240646875,-177.756046,0.00032,7]
[339967301,1728240646886,-177.756046,0.00032,7]
[339967302,1728240646896,-177.756046,0.00032,7]
[339967303,1728240646906,-151.0,0.00032,7]
[339967304,1728240646916,-151.0,0.00032,7]
[339967305,1728240646926,-151.0,0.00032,7]
[339967306,1728240646937,-151.0,0.00032,7]
[339967307,1728240646947,-198.66169,0.00032,7]
[339967308,1728240646957,-11858.6676975,0.00032,5]
[339967309,1728240646968,-11329.0885297,0.00032,5]
[339967310,1728240646979,-177.756046,0.00032008,7]
[339967311,1728240646989,-177.756046,0.00032008,7]
[339967312,1728240647000,-151.0,0.0003201,7]
[339967313,1728240647151,-194.0,0.0003202,30]
[339967314,1728240647163,-194.0,0.0003202,30]
[339967315,1728240647171,-260.0,0.0003202,30]
[339967316,1728240647180,-150.26906416,0.0003202,3]
[339967317,1728240647189,-48670.89566068,0.0003202,30]
[339967318,1728241676524,162.72,0.00010959,2]
[339967326,1728241831904,-294.56,0.00028057,2]
[339967327,1728241831913,-23.89,0.000281,5]
[339967328,1728241832015,-1038.87739501,0.000281,5]
[339967329,1728241832028,-1601.9635814,0.000281,5]
[339967330,1728241832045,-5494.29642964,0.000281,5]
[339967331,1728241832158,-1425.15127954,0.000281,5]
[339967332,1728241832170,-1041.76047077,0.000281,5]
[339967333,1728241832181,-887.06084364,0.000281,5]
[339967334,1728241832191,-1425.15127954,0.00028999,2]
[339967335,1728241832200,-500.0,0.00029099,2]
[339967336,1728241832210,-53.67779966,0.00029721,2]
[339967362,1728241837997,-196.32220034,0.00029721,2]
[339967363,1728241838006,-1500.0,0.00029776,2]
[339967364,1728241838016,-7603.67779966,0.00029855,2]
[339967365,1728241838193,-3158.70832146,0.00029855,2]
[339967371,1728241840061,-1472.27749999,0.00029855,2]
[339967372,1728241840073,-629.790473,0.00029855,2]
[339967373,1728241840194,-6783.29590589,0.00029855,2]
[339967374,1728241840203,-160.0,0.00029923,2]
[339967375,1728241840212,-200.0,0.00029927,2]
[339967376,1728241840222,-200.0,0.00029928,2]
[339967377,1728241840231,-250.0,0.00029929,2]
[339967379,1728241840240,-154.48,0.00030001,2]
[339967381,1728241840249,-2685.03,0.00030085,2]
[339967383,1728241840258,-656.43,0.00030111,30]
[339967385,1728241840267,-250.0,0.00030213,2]
[339967386,1728241840276,-840.0,0.00030243,2]
[339967388,1728241840286,-150.0,0.00030285,2]
[339967390,1728241840295,-3800.96,0.00030286,2]
[339967392,1728241840304,-294.56,0.00030321,2]
[339967394,1728241840313,-209.15,0.00030363,2]
[339967396,1728241840323,-160.6,0.00030545,120]
[339967398,1728241840333,-164.22,0.00030699,2]
[339967400,1728241840342,-499.99,0.00030766,2]
[339967402,1728241840351,-64048.93802449,0.0003128,2]
[339967404,1728241840363,-11370.32767551,0.0003128,2]
[339967405,1728241840372,-1000.0,0.0003128,2]
[339967407,1728241840381,-14677.8356,0.0003128,2]
[339967409,1728241840390,-300.51,0.00031297,2]
[339967411,1728241840400,-167.0,0.00031313,2]
[339967413,1728241840409,-1206.85696921,0.00031421,2]
[339967415,1728241840419,-1029.39348249,0.00031611,15]
[339967417,1728241840428,-374.04,0.00031701,3]
[339967419,1728241840438,-423.5,0.00031711,2]
[339967420,1728241840447,-754.75,0.00031711,2]
[339967422,1728241840459,-423.5,0.00031711,2]
[339967425,1728241840474,-754.75,0.00031711,2]
[339967427,1728241840484,-422.59,0.00031711,2]
[339967429,1728241840494,-754.75,0.00031711,2]
[339967431,1728241840504,-754.75,0.00031711,2]
[339967433,1728241840514,-754.75,0.00031711,2]
[339967435,1728241840524,-286.17813824,0.00031899,2]
[339967437,1728241840535,-1950.29699677,0.00031899,2]
[339967439,1728241840545,-2137.06520158,0.0003192,2]
[339967457,1728241843005,-150.4,0.00029936,2]
[339967458,1728241843014,-115.00555991,0.0003192,2]
[339967481,1728241846203,-975.14849839,0.00031899,2]
[339967482,1728241846212,-971.156417,0.0003192,2]
[339967485,1728242164637,2471.0,0.00015,2]
[339967486,1728242166322,2224.0,0.00015,2]
[339967487,1728242201970,159.4,0.00010959,2]
[339967546,1728242765915,154.95,0.00010959,2]
[339967593,1728243032071,-300.0,0.00019725,2]
[339967595,1728243032080,-37.01913656,0.00030204,2]
[339967617,1728243038332,-1462.98086344,0.00030204,2]
[339967618,1728243038342,-179.75,0.00030225,2]
[339967619,1728243038352,-5025.91,0.00030225,2]
[339967620,1728243038362,-500.0,0.0003023,2]
[339967621,1728243038371,-250.0,0.0003027,2]
[339967622,1728243038381,-1690.25091406,0.0003027,2]
[339967623,1728243038391,-457.09,0.00030311,2]
[339967624,1728243038400,-150.4,0.00030362,2]
[339967625,1728243038409,-396.65,0.00030362,2]
[339967626,1728243038418,-253.79,0.0003041,2]
[339967627,1728243038428,-499.99,0.0003041,2]
[339967628,1728243038438,-200.0,0.00030412,2]
[339967629,1728243038458,-636.72,0.00030453,30]
[339967630,1728243038468,-250.0,0.0003046,2]
[339967631,1728243038477,-250.0,0.00030514,2]
[339967632,1728243038486,-164.22,0.00030514,2]
[339967633,1728243038495,-1000.0,0.00030634,2]
[339967634,1728243038504,-160.6,0.00030816,120]
[339967635,1728243038513,-209.14,0.00030984,2]
[339967636,1728243038523,-164.22,0.00031014,120]
[339967637,1728243038532,-167.0,0.0003163,2]
[339967638,1728243038541,-926.45413425,0.000318,15]
[339967639,1728243038551,-1000.0,0.0003182,2]
[339967640,1728243038561,-150.0,0.0003182,2]
[339967641,1728243038570,-448.10548375,0.0003189,2]
[339967642,1728243038580,-477.20756348,0.00031899,2]
[339967643,1728243038589,-6536.61308305,0.000319,2]
[339967644,1728243038600,-14976.47008776,0.000319,2]
[339967656,1728243040281,-1607.4265872,0.000319,2]
[339967657,1728243040292,-585.48500002,0.000319,2]
[339967686,1728243043262,-299.07,0.00028381,2]
[339967687,1728243043271,-299.07,0.00030645,2]
[339967688,1728243043280,-1157.38473911,0.000319,2]
[339967689,1728243043373,-12592.55099999,0.000319,2]
[339967696,1728243046201,-1597.64780581,0.000319,2]
[339967697,1728243046227,-115147.34319706,0.000319,2]
[339967698,1728243046240,-975.14849838,0.00031919,2]
[339967699,1728243046250,-1173.73545464,0.00031923,4]
[339967700,1728243046261,-1101.7762717,0.00031923,2]
[339967701,1728243046270,-154.89497527,0.00031923,2]
[339967702,1728243046278,-50000.0,0.00032,22]
[339967703,1728243046287,-50000.0,0.00032,32]
[339967704,1728243046296,-429.0,0.00032,16]
[339967705,1728243046305,-859.0,0.00032,16]
[339967706,1728243046314,-255.266524,0.00032,20]
[339967707,1728243046323,-151.0,0.00032023,7]
[339967708,1728243046332,-151.0,0.00032023,7]
[339967709,1728243046341,-151.0,0.00032023,7]
[339967710,1728243046350,-50000.0,0.00032023,31]
[339967711,1728243046359,-50000.0,0.00032023,32]
[339967712,1728243046369,-10364.03570474,0.00032023,3]
[339967713,1728243046378,-14527.13638239,0.00032023,3]
[339967714,1728243046387,-5197.7961272,0.00032023,3]
[339967715,1728243046398,-1000.0,0.00032023,30]
[339967716,1728243046408,-859.0,0.00032023,30]
[339967717,1728243046419,-194.0,0.00032023,30]
[339967718,1728243046428,-6013.44549461,0.00032023,30]
[339967719,1728243046445,-6147.18234958,0.00032023,30]
[339967723,1728243176904,150.0,0.000122,2]
[339967724,1728243546208,-160.6,0.00030908,120]
[339967725,1728243546231,-604.88,0.00030911,30]
[339967726,1728243546265,-50000.0,0.00032,32]
[339967727,1728243546293,-500482.2316543,0.00032979,32]
[339967728,1728243546318,-50000.0,0.00033,33]
[339967729,1728243546343,-604.88,0.00033495,120]
[339967730,1728243546370,-50000.0,0.00034,34]
[339967731,1728243546392,-180.0,0.00034037,120]
[339967732,1728243546415,-151.71933367,0.000349,120]
[339967733,1728243546440,-50000.0,0.00035,35]
[339967734,1728243546461,-1547.12812243,0.00035,30]
[339967735,1728243546486,-50000.0,0.00036,36]
[339967736,1728243546508,-604.88,0.00036079,120]
[339967737,1728243546533,-50000.0,0.00037,37]
[339967738,1728243546554,-1000.0,0.0003726,30]
[339967739,1728243546576,-151.71933367,0.000377,120]
[339967740,1728243546598,-152.0,0.0003798,30]
[339967741,1728243546623,-50000.0,0.00038,38]
[339967742,1728243546645,-500.0,0.00038356,30]
[339967743,1728243546792,-500.87313484,0.00038356,30]
[339967744,1728243546815,-742.31,0.00038356,30]
[339967745,1728243546837,-784.6,0.00038356,30]
[339967746,1728243546860,-1239.05,0.00038356,30]
[339967747,1728243546882,-500.0,0.00038356,30]
[339967748,1728243546904,-500.0,0.00038356,30]
[339967749,1728243546926,-500.0,0.00038356,30]
[339967750,1728243546947,-500.0,0.00038356,30]
[339967751,1728243546968,-624.13,0.00038356,30]
[339967752,1728243546990,-500.0,0.00038356,30]
[339967753,1728243547012,-500.0,0.00038356,30]
[339967754,1728243547035,-500.0,0.00038356,30]
[339967755,1728243547057,-500.0,0.00038356,30]
[339967756,1728243547079,-500.0,0.00038356,30]
[339967757,1728243547102,-500.0,0.00038356,30]
[339967758,1728243547124,-500.0,0.00038356,30]
[339967759,1728243547146,-500.0,0.00038356,30]
[339967760,1728243547169,-500.0,0.00038356,30]
[339967761,1728243547191,-500.0,0.00038356,30]
[339967762,1728243547214,-873.22,0.00038356,30]
[339967763,1728243547237,-500.0,0.00038356,30]
[339967764,1728243547262,-1730.41,0.00038356,30]
[339967765,1728243547286,-1673.99,0.00038356,30]
[339967766,1728243547309,-500.0,0.00038356,30]
[339967767,1728243547334,-500.0,0.00038356,30]
[339967768,1728243547358,-500.0,0.00038356,30]
[339967769,1728243547380,-500.0,0.00038356,30]
[339967770,1728243547402,-500.0,0.00038356,30]
[339967771,1728243547424,-500.0,0.00038356,30]
[339967772,1728243547447,-500.0,0.00038356,30]
[339967773,1728243547469,-500.0,0.00038356,30]
[339967774,1728243547490,-500.0,0.00038356,30]
[339967775,1728243547514,-500.0,0.00038356,30]
[339967776,1728243547539,-500.0,0.00038356,30]
[339967777,1728243547564,-160.16622236,0.00038356,30]
[339967778,1728243547586,-291.71767787,0.00038356,30]
[339967779,1728243547612,-500.0,0.00038356,30]
[339967780,1728243547634,-500.0,0.00038356,30]
[339967781,1728243547657,-333.03725323,0.00038356,30]
[339967782,1728243547679,-500.0,0.00038356,30]
[339967783,1728243547703,-500.0,0.00038356,30]
[339967784,1728243547726,-500.0,0.00038356,30]
[339967785,1728243547753,-500.0,0.00038356,30]
[339967786,1728243547777,-500.0,0.00038356,30]
[339967787,1728243547798,-499.79970001,0.00038356,30]
[339967788,1728243547821,-641.14,0.00038356,30]
[339967789,1728243547842,-500.0,0.00038356,30]
[339967790,1728243547865,-616.79,0.00038356,30]
[339967791,1728243547888,-500.0,0.00038356,30]
[339967792,1728243547911,-521.20525363,0.00038356,30]
[339967793,1728243547934,-500.0,0.00038356,30]
[339967794,1728243547958,-635.48,0.00038356,30]
[339967795,1728243547981,-500.0,0.00038356,30]
[339967796,1728243548005,-500.0,0.00038356,30]
[339967797,1728243548028,-500.0,0.00038356,30]
[339967798,1728243548054,-500.0,0.00038356,30]
[339967799,1728243548081,-516.6,0.00038356,30]
[339967800,1728243548106,-500.0,0.00038356,30]
[339967801,1728243548131,-695.05,0.00038356,30]
[339967802,1728243548157,-727.79,0.00038356,30]
[339967803,1728243548181,-500.0,0.00038356,30]
[339967804,1728243548205,-500.0,0.00038356,30]
[339967805,1728243548228,-423.30952312,0.00038356,30]
[339967806,1728243548253,-762.91,0.00038356,30]
[339967807,1728243548277,-500.0,0.00038356,30]
[339967808,1728243548300,-500.0,0.00038356,30]
[339967809,1728243548324,-1416.3,0.00038356,30]
[339967810,1728243548347,-546.15999342,0.00038356,30]
[339967811,1728243548371,-500.0,0.00038356,30]
[339967812,1728243548394,-500.0,0.00038356,30]
[339967813,1728243548417,-500.0,0.00038356,30]
[339967814,1728243548440,-500.0,0.00038356,30]
[339967815,1728243548464,-500.0,0.00038356,30]
[339967816,1728243548489,-500.0,0.00038356,30]
[339967817,1728243548513,-500.0,0.00038356,30]
[339967818,1728243548536,-549.08032208,0.00038356,30]
[339967819,1728243548560,-1216.37,0.00038356,30]
[339967820,1728243548584,-374.83246662,0.00038356,30]
[339967821,1728243548608,-500.0,0.00038356,30]
[339967822,1728243548631,-554.61,0.00038356,30]
[339967823,1728243548655,-500.0,0.00038356,30]
[339967824,1728243548677,-500.0,0.00038356,30]
[339967825,1728243548702,-500.0,0.00038356,30]
[339967826,1728243548727,-604.88,0.00038663,120]
[339967827,1728243548751,-500.0,0.00038767,30]
[339967828,1728243548775,-742.31,0.00038767,30]
[339967829,1728243548798,-784.6,0.00038767,30]
[339967830,1728243548821,-1239.05,0.00038767,30]
[339967831,1728243548845,-500.0,0.00038767,30]
[339967832,1728243548870,-500.0,0.00038767,30]
[339967833,1728243548893,-500.0,0.00038767,30]
[339967834,1728243548917,-609.00687901,0.00038767,30]
[339967835,1728243548941,-624.13,0.00038767,30]
[339967836,1728243548966,-500.0,0.00038767,30]
[339967837,1728243548991,-500.0,0.00038767,30]
[339967838,1728243549014,-500.0,0.00038767,30]
[339967839,1728243549038,-500.0,0.00038767,30]
[339967840,1728243549061,-500.0,0.00038767,30]
[339967841,1728243549085,-500.0,0.00038767,30]
[339967842,1728243549110,-500.0,0.00038767,30]
[339967843,1728243549135,-500.0,0.00038767,30]
[339967844,1728243549159,-500.0,0.00038767,30]
[339967845,1728243549183,-500.0,0.00038767,30]
[339967846,1728243549207,-873.22,0.00038767,30]
[339967847,1728243549315,-1730.41,0.00038767,30]
[339967848,1728243549362,-500.0,0.00038767,30]
[339967849,1728243549386,-1673.99,0.00038767,30]
[339967850,1728243549410,-500.0,0.00038767,30]
[339967851,1728243549434,-500.0,0.00038767,30]
[339967852,1728243549458,-500.0,0.00038767,30]
[339967853,1728243549483,-500.0,0.00038767,30]
[339967854,1728243549505,-500.0,0.00038767,30]
[339967855,1728243549531,-500.0,0.00038767,30]
[339967856,1728243549555,-500.0,0.00038767,30]
[339967857,1728243549578,-500.0,0.00038767,30]
[339967858,1728243549605,-500.0,0.00038767,30]
[339967859,1728243549627,-500.0,0.00038767,30]
[339967860,1728243549650,-500.0,0.00038767,30]
[339967861,1728243549674,-500.0,0.00038767,30]
[339967862,1728243549696,-500.0,0.00038767,30]
[339967863,1728243549722,-500.0,0.00038767,30]
[339967864,1728243549749,-500.0,0.00038767,30]
[339967865,1728243549773,-320.03459213,0.00038767,30]
[339967866,1728243549798,-434.83766849,0.00038767,30]
[339967867,1728243549821,-197.56304314,0.00038767,30]
[339967868,1728243549845,-641.14,0.00038767,30]
[339967869,1728243549873,-500.0,0.00038767,30]
[339967870,1728243549900,-616.79,0.00038767,30]
[339967871,1728243549929,-567.8221758,0.00038767,30]
[339967872,1728243549956,-500.0,0.00038767,30]
[339967873,1728243549986,-635.48,0.00038767,30]
[339967874,1728243550011,-500.0,0.00038767,30]
[339967875,1728243550038,-500.0,0.00038767,30]
[339967876,1728243550067,-500.0,0.00038767,30]
[339967877,1728243550089,-500.0,0.00038767,30]
[339967878,1728243550113,-516.6,0.00038767,30]
[339967879,1728243550137,-500.0,0.00038767,30]
[339967880,1728243550159,-695.05,0.00038767,30]
[339967881,1728243550182,-727.79,0.00038767,30]
[339967882,1728243550204,-500.0,0.00038767,30]
[339967883,1728243550226,-500.0,0.00038767,30]
[339967884,1728243550252,-762.91,0.00038767,30]
[339967885,1728243550276,-500.0,0.00038767,30]
[339967886,1728243550298,-500.0,0.00038767,30]
[339967887,1728243550322,-1416.3,0.00038767,30]
[339967888,1728243550345,-500.0,0.00038767,30]
[339967889,1728243550370,-500.0,0.00038767,30]
[339967890,1728243550392,-500.0,0.00038767,30]
[339967891,1728243550414,-500.0,0.00038767,30]
[339967892,1728243550436,-500.0,0.00038767,30]
[339967893,1728243550458,-500.0,0.00038767,30]
[339967894,1728243550481,-500.0,0.00038767,30]
[339967895,1728243550503,-1216.37,0.00038767,30]
[339967896,1728243550526,-500.0,0.00038767,30]
[339967897,1728243550548,-554.61,0.00038767,30]
[339967898,1728243550569,-500.0,0.00038767,30]
[339967899,1728243550592,-500.0,0.00038767,30]
[339967900,1728243550616,-87017.32749467,0.000389,120]
[339967901,1728243550641,-50000.0,0.00039,39]
[339967902,1728243550664,-4000.0,0.00039,60]
[339967903,1728243550686,-171089.77715029,0.00039,30]
[339967904,1728243550712,-87472.8439,0.00039078,60]